bitfinex/quotes_SOLUSD_20250714
["timestamp","ask_amount","ask_price","bid_price","bid_amount"]
[1752512720295,0.7,164.79,164.72,0.71]
[1752512720473,0.7,164.79,164.73,7.38570574]
[1752512720474,30.94,164.78,164.73,7.38570574]
[1752512720793,30.94,164.78,164.74,0.71]
[1752512720794,31.64,164.78,164.74,0.71]
[1752512721975,37.70869765,164.78,164.74,0.71]
[1752512722795,27.70869765,164.78,164.72,0.71]
[1752512722971,42.88044179,164.78,164.72,0.71]
[1752512724396,42.88044179,164.78,164.69,0.03]
[1752512724397,42.78468397,164.77,164.69,0.03]
[1752512724572,26.0,164.74,164.69,0.03]
[1752512724773,30.94,164.73,164.69,0.03]
[1752512724988,31.38,164.73,164.69,0.03]
[1752512725289,0.44,164.72,164.69,0.03]
[1752512725592,0.44,164.71,164.69,0.03]
[1752512725897,56.94,164.7,164.69,0.03]
[1752512726200,57.38,164.7,164.69,0.03]
[1752512726588,63.45164541,164.7,164.69,0.03]
[1752512727093,30.94,164.7,164.69,0.03]
[1752512727613,32.51098733,164.72,164.69,0.03]
[1752512727905,30.94,164.7,164.69,0.03]
[1752512729193,37.45164541,164.7,164.69,0.03]
[1752512729785,37.01164541,164.7,164.69,0.03]
[1752512731489,30.94,164.7,164.69,0.03]
[1752512731696,37.01164541,164.7,164.69,0.03]
[1752512731896,26.0,164.72,164.69,0.03]
[1752512732084,30.94,164.71,164.69,0.03]
[1752512732480,26.0,164.72,164.69,0.03]
[1752512732680,30.96,164.71,164.69,0.03]
[1752512732911,37.47141268,164.71,164.69,0.03]
[1752512734587,37.03141268,164.71,164.69,0.03]
[1752512740303,30.96,164.7,164.69,0.03]
[1752512742018,15.61351967,164.77,164.69,8.08570574]
[1752512742204,37.02943432,164.76,164.7,0.67]
[1752512742514,37.46943432,164.76,164.72,7.38570574]
[1752512742694,37.46943432,164.76,164.71,7.38570574]
[1752512743019,37.46943432,164.76,164.71,8.05570574]
[1752512743313,30.96,164.75,164.72,8.05570574]
[1752512743518,6.06943432,164.76,164.73,8.05570574]
[1752512743719,30.96,164.75,164.72,7.38570574]
[1752512744317,6.07017117,164.74,164.7,0.67]
[1752512744619,30.96,164.73,164.72,7.38570574]
[1752512744819,30.96,164.73,164.72,8.05570574]
[1752512745897,30.96,164.73,164.7,0.67]
[1752512746097,37.03057121,164.73,164.71,7.38570574]
[1752512746308,37.03057121,164.73,164.71,0.67]
[1752512746516,30.96,164.73,164.71,0.67]
[1752512747317,30.96,164.73,164.72,0.67]
[1752512747620,30.96,164.73,164.7,8.05570574]
[1752512748234,30.96,164.73,164.71,0.67]
[1752512748398,37.47080157,164.73,164.69,0.03]
[1752512750194,0.44,164.72,164.69,0.03]
[1752512750399,30.96,164.71,164.69,0.03]
[1752512751134,30.96,164.71,164.69,8.08570574]
[1752512751432,30.96,164.71,164.7,0.67]
[1752512752604,6.07105966,164.72,164.7,0.67]
[1752512752799,26.0,164.75,164.7,8.05570574]
[1752512752800,30.96,164.71,164.7,8.05570574]
[1752512753101,30.96,164.72,164.7,8.05570574]
[1752512753411,30.96,164.72,164.71,8.05570574]
[1752512753921,6.06943432,164.76,164.71,8.05570574]
[1752512754101,30.96,164.75,164.73,7.38570574]
[1752512754303,30.96,164.74,164.69,1.6765]
[1752512754530,6.06869765,164.78,164.73,7.38570574]
[1752512754823,30.96,164.77,164.74,8.05570574]
[1752512755416,37.02925587,164.77,164.74,8.05570574]
[1752512756031,6.06925587,164.77,164.74,8.05570574]
[1752512756206,30.96,164.76,164.74,8.05570574]
[1752512756609,30.96,164.76,164.75,8.05570574]
[1752512757022,30.96,164.76,164.75,0.67]
[1752512757230,30.96,164.76,164.75,8.05570574]
[1752512757527,30.96,164.76,164.75,0.67]
[1752512757712,37.02952393,164.76,164.74,7.38570574]
[1752512757903,37.02952393,164.76,164.74,8.05570574]
[1752512758103,30.96,164.76,164.74,8.05570574]
[1752512758405,30.96,164.76,164.74,0.67]
[1752512758612,6.06832938,164.79,164.75,7.38570574]
[1752512758813,30.94,164.78,164.76,0.66]
[1752512759106,6.06832938,164.79,164.76,0.66]
[1752512759324,30.94,164.78,164.76,0.66]
[1752512761229,6.06832938,164.79,164.76,0.66]
[1752512761533,30.94,164.77,164.76,0.66]
[1752512761903,30.94,164.77,164.76,7.38570574]
[1752512762528,30.94,164.77,164.76,8.04570574]
[1752512762727,6.06832938,164.79,164.76,8.04570574]
[1752512762935,30.94,164.78,164.77,7.38570574]
[1752512763321,37.00869765,164.78,164.77,7.38570574]
[1752512763628,37.00869765,164.78,164.76,8.04570574]
[1752512764206,30.94,164.78,164.77,8.04570574]
[1752512764411,30.94,164.78,164.77,0.66]
[1752512764711,37.00883626,164.78,164.76,7.38570574]
[1752512764920,30.94,164.77,164.76,7.38570574]
[1752512765153,30.94,164.77,164.76,0.66]
[1752512765323,37.00906597,164.77,164.75,7.38570574]
[1752512765524,37.00906597,164.77,164.75,8.04570574]
[1752512765721,26.44,164.8,164.75,8.04570574]
[1752512765911,30.94,164.79,164.75,8.04570574]
[1752512766525,37.00832938,164.79,164.75,8.04570574]
[1752512769940,37.00832938,164.79,164.75,8.07570574]
[1752512770142,37.44832938,164.79,164.75,0.03]
[1752512770438,52.61915285,164.79,164.75,0.03]
[1752512770834,52.61915285,164.79,164.75,0.69]
[1752512772422,52.61915285,164.79,164.75,8.07570574]
[1752512772662,52.61915285,164.79,164.75,0.69]
[1752512772854,52.61915285,164.79,164.75,8.07570574]
[1752512773743,52.61915285,164.79,164.75,0.69]
[1752512773946,0.44,164.78,164.75,0.03]
[1752512774139,30.94,164.77,164.75,0.03]
[1752512775222,30.94,164.77,164.75,0.69]
[1752512775922,6.06943432,164.76,164.75,0.69]
[1752512776118,6.06943432,164.76,164.75,0.03]
[1752512776444,6.06943432,164.76,164.75,0.69]
[1752512777242,6.06943432,164.76,164.75,0.03]
[1752512778150,6.06943432,164.76,164.75,0.69]
[1752512781649,37.00943432,164.76,164.75,8.07570574]
[1752512782552,6.06943432,164.76,164.75,8.07570574]
[1752512782858,37.00943432,164.76,164.75,8.07570574]
[1752512784452,37.44943432,164.76,164.75,1e-08]
[1752512785554,58.31658886,164.76,164.75,1e-08]
[1752512786140,54.23411829,164.76,164.75,1e-08]
[1752512786637,6.50943432,164.76,164.75,1e-08]
[1752512786937,37.44943432,164.76,164.75,1e-08]
[1752512788253,6.50943432,164.76,164.75,1e-08]
[1752512788434,37.44943432,164.76,164.75,1e-08]
[1752512788937,54.23411829,164.76,164.75,1e-08]
[1752512789355,23.29411829,164.76,164.75,1e-08]
[1752512789558,54.23411829,164.76,164.75,1e-08]
[1752512789737,23.29411829,164.76,164.75,1e-08]
[1752512789933,10.0,164.79,164.75,1e-08]
[1752512790160,6.06849076,164.79,164.76,4.50198871]
[1752512790338,31.0,164.78,164.77,5.18198871]
[1752512790540,6.12737201,164.82,164.77,12.56769445]
[1752512790855,31.02,164.81,164.78,5.17783433]
[1752512791158,31.02,164.81,164.79,5.17783433]
[1752512791366,31.02,164.81,164.8,4.49783433]
[1752512792234,37.08759298,164.81,164.8,4.49783433]
[1752512792451,31.02,164.81,164.8,4.49783433]
[1752512792655,37.08759298,164.81,164.8,4.49783433]
[1752512793035,37.14759298,164.81,164.8,4.49783433]
[1752512794044,37.58759298,164.81,164.8,4.49783433]
[1752512794436,37.58759298,164.81,164.76,8.06570574]
[1752512794638,37.58759298,164.81,164.77,0.68]
[1752512794835,37.14759298,164.81,164.77,0.68]
[1752512795239,37.58759298,164.81,164.75,0.68000001]
[1752512795445,37.58759298,164.81,164.75,8.06570575]
[1752512795663,37.58759298,164.81,164.76,7.38570574]
[1752512795847,0.44,164.8,164.76,0.68]
[1752512796048,31.0,164.79,164.75,7.38570575]
[1752512796255,31.44,164.79,164.75,0.68000001]
[1752512796647,31.44,164.79,164.75,1e-08]
[1752512796849,31.44,164.79,164.75,8.06570575]
[1752512797742,37.50846425,164.79,164.75,8.06570575]
[1752512799142,37.50846425,164.79,164.75,7.38570575]
[1752512799642,0.44,164.78,164.75,1e-08]
[1752512799842,31.0,164.77,164.75,1e-08]
[1752512800038,31.0,164.77,164.75,7.38570575]
[1752512800356,31.0,164.77,164.76,8.06570574]
[1752512800758,31.0,164.79,164.76,0.68]
[1752512801056,0.06,164.81,164.78,7.38570574]
[1752512801381,0.06,164.81,164.8,7.38570574]
[1752512801550,31.06,164.81,164.8,8.06570574]
[1752512802445,0.06,164.81,164.8,8.06570574]
[1752512803252,0.06,164.81,164.8,14.1336669]
[1752512804675,0.06,164.81,164.78,0.68]
[1752512804872,0.06,164.81,164.79,7.38570574]
[1752512805048,0.06,164.81,164.79,8.06570574]
[1752512805244,31.06,164.81,164.79,7.38570574]
[1752512805557,0.06,164.81,164.8,8.06570574]
[1752512806560,0.06,164.81,164.8,14.1336669]
[1752512810485,0.06,164.81,164.8,21.51937264]
[1752512811084,0.06,164.81,164.8,14.1336669]
[1752512811665,0.06,164.81,164.8,7.38570574]
[1752512811862,0.06,164.81,164.8,8.06570574]
[1752512816563,0.06,164.81,164.77,0.68]
[1752512816764,0.06,164.81,164.8,7.38570574]
[1752512819085,0.06,164.81,164.79,0.68]
[1752512819391,0.06,164.81,164.8,7.38570574]
[1752512819578,0.06,164.81,164.8,8.08570574]
[1752512820869,0.06,164.81,164.8,14.1536669]
[1752512822087,0.06,164.81,164.8,38.93085272]
[1752512822472,0.06,164.83,164.81,42.78468397]
[1752512822690,0.06,164.85,164.82,24.77711219]
[1752512822987,0.06,164.85,164.84,7.38570574]
[1752512823201,0.06,164.85,164.84,7.99235461]
[1752512823489,0.06,164.85,164.84,8.69235461]
[1752512823867,0.06,164.85,164.84,8.08570574]
[1752512824083,0.06,164.85,164.84,0.7]
[1752512824297,0.06,164.85,164.84,7.38570574]
[1752512824474,0.06,164.85,164.84,8.08570574]
[1752512825286,0.06,164.85,164.84,7.38570574]
[1752512826276,0.06,164.85,164.84,8.08570574]
[1752512827792,0.06,164.85,164.84,14.15219445]
[1752512828187,0.06,164.85,164.84,6.76648871]
[1752512828390,0.06,164.85,164.84,14.15219445]
[1752512828868,0.06,164.85,164.84,14.75884332]
[1752512832299,0.06,164.86,164.85,16.78468397]
[1752512832482,0.06,164.86,164.85,24.87038971]
[1752512833477,0.06,164.86,164.85,30.93651042]
[1752512833798,0.06,164.86,164.85,56.93651042]
[1752512837597,0.06,164.86,164.85,49.55080468]
[1752512837789,0.06,164.86,164.85,56.93651042]
[1752512838192,1e-08,164.86,164.85,56.93651042]
[1752512838596,1e-08,164.86,164.85,49.55080468]
[1752512838780,1e-08,164.86,164.85,56.93651042]
[1752512843610,1e-08,164.86,164.85,64.32221616]
[1752512843910,1e-08,164.86,164.85,56.93651042]
[1752512847220,0.06,164.89,164.88,16.78468397]
[1752512847417,0.06,164.9,164.88,63.08259714]
[1752512847587,0.06,164.9,164.89,50.87038971]
[1752512849118,0.06,164.9,164.89,56.93503887]
[1752512850395,0.1,164.93,164.92,42.78468397]
[1752512850621,0.1,164.93,164.92,50.17038971]
[1752512850817,0.06,164.95,164.93,16.78468397]
[1752512850990,0.06,164.95,164.94,21.44050326]
[1752512851191,0.06,164.95,164.94,22.11050326]
[1752512852003,0.06,164.95,164.94,14.72479752]
[1752512853396,0.06,164.95,164.94,14.11851645]
[1752512853919,0.06,164.95,164.94,13.44851645]
[1752512854299,0.06,164.95,164.94,14.11851645]
[1752512861627,0.06,164.95,164.94,13.44851645]
[1752512862642,0.06,164.95,164.94,6.06281071]
[1752512862830,0.06,164.95,164.94,13.44851645]
[1752512863611,0.06,164.95,164.94,7.38570574]
[1752512863911,0.56,164.95,164.94,7.38570574]
[1752512866336,0.56,164.95,164.93,7.41570574]
[1752512866637,0.06,164.95,164.94,7.38570574]
[1752512867223,0.56,164.95,164.94,7.38570574]
[1752512869948,0.56,164.95,164.93,0.03]
[1752512870117,0.56,164.95,164.93,7.41570574]
[1752512870939,0.5,164.94,164.93,7.41570574]
[1752512871117,0.56,164.95,164.93,7.41570574]
[1752512871318,0.56,164.95,164.94,7.38570574]
[1752512872653,0.56,164.95,164.93,0.03]
[1752512872853,6.62247355,164.95,164.93,0.03]
[1752512873327,0.5,164.94,164.93,0.03]
[1752512874128,17.28468397,164.94,164.93,0.03]
[1752512874337,18.85548397,164.94,164.93,0.03]
[1752512874749,24.91829468,164.94,164.93,0.03]
[1752512874926,55.81829468,164.94,164.93,0.03]
[1752512879829,39.03361071,164.94,164.93,0.03]
[1752512880034,30.9,164.94,164.93,7.41570574]
[1752512880430,178.86,164.95,164.93,8.07570574]
[1752512880630,0.06,164.95,164.93,8.07570574]
[1752512880826,0.06,164.95,164.94,7.38570574]
[1752512881042,0.06,164.95,164.94,8.04570574]
[1752512882136,0.06,164.95,164.94,7.38570574]
[1752512883567,0.06,164.95,164.93,7.41570574]
[1752512883729,0.56,164.95,164.93,0.03]
[1752512884146,0.06,164.95,164.93,0.03]
[1752512884621,0.56,164.95,164.93,0.03]
[1752512885021,6.62252663,164.95,164.93,0.03]
[1752512885448,0.5,164.94,164.93,0.03]
[1752512886030,6.56281071,164.94,164.93,0.03]
[1752512888046,0.5,164.94,164.93,0.03]
[1752512888349,6.12247766,164.95,164.93,0.03]
[1752512888737,6.62247766,164.95,164.93,0.03]
[1752512888945,0.06,164.95,164.93,0.03]
[1752512889426,30.9,164.94,164.93,0.03]
[1752512891454,0.06,164.95,164.93,0.03]
[1752512891633,30.9,164.94,164.93,0.69]
[1752512891952,0.06,164.95,164.93,8.07570574]
[1752512892162,30.9,164.94,164.93,6.09317831]
[1752512892654,30.9,164.94,164.93,6.75317831]
[1752512893155,0.06,164.95,164.93,6.75317831]
[1752512893341,30.96,164.95,164.94,7.38570574]
[1752512893541,0.06,164.95,164.94,7.38570574]
[1752512893738,30.96,164.95,164.94,7.38570574]
[1752512894458,30.96,164.95,164.93,8.07570574]
[1752512895130,30.96,164.95,164.93,14.13879995]
[1752512895531,30.96,164.95,164.94,8.04570574]
[1752512896557,0.06,164.95,164.94,14.10851645]
[1752512896767,0.06,164.95,164.94,8.04570574]
[1752512898467,30.96,164.95,164.94,8.04570574]
[1752512898866,30.96,164.95,164.94,14.10851645]
[1752512899862,30.96,164.95,164.94,8.04570574]
[1752512900759,0.06,164.95,164.94,8.04570574]
[1752512900940,30.96,164.95,164.94,14.10851645]
[1752512902067,0.06,164.95,164.94,14.10851645]
[1752512902279,30.96,164.95,164.94,14.10851645]
[1752512902766,30.96,164.95,164.94,8.04570574]
[1752512903470,30.96,164.95,164.93,7.41570574]
[1752512903772,0.5,164.94,164.93,0.03]
[1752512903944,0.06,164.95,164.94,0.66]
[1752512904146,0.06,164.95,164.94,8.04570574]
[1752512904450,0.06,164.95,164.94,14.71479752]
[1752512904659,0.06,164.95,164.94,14.10851645]
[1752512914355,0.1,164.97,164.95,16.78468397]
[1752512914584,0.1,164.97,164.96,57.48620756]
[1752512914752,0.1,164.97,164.96,72.91761904]
[1752512915254,0.1,164.97,164.96,8.04570574]
[1752512915455,0.1,164.97,164.96,14.10778139]
[1752512916566,0.1,164.97,164.96,8.04570574]
[1752512917076,0.1,164.97,164.96,14.10778139]
[1752512918778,0.1,164.97,164.96,8.04570574]
[1752512919171,0.1,164.97,164.96,14.10778139]
[1752512920456,0.1,164.97,164.96,14.71398895]
[1752512920674,0.1,164.97,164.96,40.71398895]
[1752512922579,0.1,164.97,164.96,48.09969469]
[1752512923563,0.1,164.98,164.96,64.88437866]
[1752512923767,0.1,164.98,164.97,81.71038971]
[1752512924884,0.1,164.98,164.97,87.77209789]
[1752512926178,0.1,164.98,164.97,61.77209789]
[1752512927185,0.1,164.99,164.97,61.77209789]
[1752512927363,0.1,164.99,164.98,9.56043981]
[1752512927568,0.1,164.99,164.98,10.22043981]
[1752512928076,0.1,164.99,164.98,1.26613407]
[1752512928376,0.1,164.99,164.98,7.38570574]
[1752512928586,0.1,164.99,164.98,8.04570574]
[1752512928974,0.1,164.99,164.98,14.1070465]
[1752512933194,0.1,164.99,164.98,0.66]
[1752512933391,0.6,164.99,164.95,6.06233049]
[1752512933593,0.1,164.99,164.97,7.38570574]
[1752512934176,0.1,164.99,164.98,7.38570574]
[1752512934384,0.1,164.99,164.95,6.72233049]
[1752512934689,0.1,164.99,164.97,7.38570574]
[1752512934889,0.6,164.99,164.96,7.38570574]
[1752512935280,6.66109023,164.99,164.96,7.38570574]
[1752512935483,0.6,164.99,164.96,7.38570574]
[1752512935796,6.66101361,164.99,164.95,8.04570574]
[1752512935998,0.5,164.98,164.95,7.38570574]
[1752512936775,0.1,164.99,164.93,6.75310267]
[1752512936981,0.5,164.98,164.95,7.38570574]
[1752512938485,6.56148635,164.98,164.94,7.38570574]
[1752512938698,0.5,164.98,164.95,7.38570574]
[1752512938898,6.56144201,164.98,164.95,7.38570574]
[1752512940203,0.5,164.98,164.95,7.38570574]
[1752512940402,0.1,164.99,164.97,7.38570574]
[1752512940702,0.1,164.99,164.98,8.09570574]
[1752512942686,0.1,164.99,164.98,14.1570465]
[1752512943288,0.1,164.99,164.98,7.38570574]
[1752512943909,0.1,164.99,164.95,32.77233575]
[1752512944205,0.1,164.99,164.98,7.38570574]
[1752512944696,0.1,164.99,164.98,8.09570574]
[1752512945206,0.1,164.99,164.98,14.1570465]
[1752512946005,0.1,164.99,164.98,14.1870465]
[1752512946394,0.1,164.99,164.98,40.1870465]
[1752512946593,0.1,164.99,164.98,56.97173047]
[1752512946798,0.1,164.99,164.98,31.57786454]
[1752512948507,0.1,164.99,164.98,62.53786454]
[1752512948902,0.06,165.02,165.01,26.0]
[1752512949098,0.06,165.02,165.01,64.95172961]
[1752512949299,0.06,165.02,165.01,65.66172961]
[1752512949599,0.06,165.02,165.01,82.44641358]
[1752512950995,0.06,165.02,165.01,88.50665235]
[1752512951696,0.06,165.02,165.01,91.59361412]
[1752512953227,0.06,165.02,165.01,63.73023877]
[1752512953428,0.06,165.02,165.01,71.11594451]
[1752512954134,0.06,165.02,165.01,13.44594451]
[1752512954626,0.06,165.02,165.01,14.15594451]
[1752512955499,0.06,165.02,165.01,14.76196838]
[1752512956747,0.06,165.02,165.01,31.54665235]
[1752512960339,0.06,165.02,165.01,38.93235809]
[1752512961141,0.06,165.02,165.01,31.54665235]
[1752512966120,0.06,165.02,165.01,62.46665235]
[1752512966721,0.06,165.02,165.01,44.97196838]
[1752512966916,0.06,165.02,165.01,70.97196838]
[1752512970419,0.06,165.02,165.01,31.53665235]
[1752512970635,0.06,165.02,165.01,62.45665235]
[1752512971031,0.06,165.02,165.01,69.84235809]
[1752512971234,0.06,165.04,165.03,22.8441883]
[1752512971432,0.06,165.04,165.03,69.16155021]
[1752512971757,0.06,165.04,165.03,69.86155021]
[1752512973342,0.06,165.04,165.03,55.09013873]
[1752512973549,0.06,165.04,165.03,69.86155021]
[1752512974053,0.06,165.04,165.03,55.09013873]
[1752512974353,0.06,165.04,165.03,69.86155021]
[1752512975140,0.06,165.04,165.03,37.60545476]
[1752512975381,0.06,165.04,165.03,70.9911605]
[1752512975533,0.56,165.04,165.03,7.38570574]
[1752512975741,0.06,165.04,165.03,7.38570574]
[1752512978026,0.06,165.04,165.03,13.44521007]
[1752512979244,0.06,165.04,165.03,39.44521007]
[1752512980453,0.06,165.04,165.03,33.38570574]
[1752512981322,0.56,165.04,165.03,33.38570574]
[1752512981742,0.06,165.04,165.03,33.38570574]
[1752512982542,0.06,165.04,165.03,39.44521007]
[1752512983345,0.06,165.04,165.03,71.04521007]
[1752512983524,0.06,165.04,165.03,70.34521007]
[1752512985051,0.06,165.04,165.03,39.44521007]
[1752512986642,0.06,165.04,165.03,13.44521007]
[1752512986853,0.06,165.04,165.03,6.05950433]
[1752512987159,0.06,165.04,165.03,13.44521007]
[1752512988850,0.06,165.04,165.03,13.47521007]
[1752512989049,0.06,165.04,165.03,14.17521007]
[1752512991746,0.06,165.04,165.03,14.7811605]
[1752512993851,0.06,165.04,165.03,13.47521007]
[1752513000265,0.06,165.04,165.03,14.18521007]
[1752513005677,0.06,165.04,165.03,14.7911605]
[1752513006777,0.06,165.04,165.03,0.03]
[1752513007347,0.56,165.04,165.03,0.03]
[1752513007559,0.56,165.04,165.03,7.41570574]
[1752513008370,0.56,165.04,165.03,0.03]
[1752513010359,6.61913717,165.04,165.03,0.03]
[1752513015459,154.51913717,165.04,165.03,0.03]
[1752513015665,180.51913717,165.04,165.03,0.03]
[1752513015862,49.40382114,165.04,165.03,0.03]
[1752513016065,42.78468397,165.01,165.0,10.0]
[1752513016266,75.74028397,165.01,165.0,10.0]
[1752513016477,28.0756,165.01,165.0,10.0]
[1752513016779,58.9556,165.01,165.0,10.0]
[1752513017787,2.0756,165.01,165.0,10.0]
[1752513017958,8.13583877,165.01,165.0,10.0]
[1752513023088,24.92052274,165.01,165.0,10.0]
[1752513023390,26.0,164.99,164.98,0.03]
[1752513023558,56.88,164.99,164.98,0.03]
[1752513023758,42.78468397,164.97,164.96,0.03]
[1752513023993,26.0,164.97,164.93,0.03]
[1752513024283,27.6435,164.94,164.93,0.03]
[1752513024490,32.06317831,164.93,164.92,0.03]
[1752513024671,210.84317831,164.93,164.92,0.03]
[1752513024865,211.31317831,164.93,164.92,0.03]
[1752513028097,173.9,164.93,164.92,0.03]
[1752513028281,178.82,164.93,164.92,0.03]
[1752513028588,179.29,164.93,164.92,0.03]
[1752513028911,184.88317831,164.93,164.92,0.03]
[1752513029195,178.82,164.93,164.92,0.03]
[1752513030279,184.88317831,164.93,164.92,0.03]
[1752513030467,147.9,164.93,164.92,0.03]
[1752513030671,178.82,164.93,164.92,0.03]
[1752513032693,184.88317831,164.93,164.92,0.03]
[1752513033183,178.82,164.93,164.92,0.03]
[1752513033994,184.88317831,164.93,164.92,0.03]
[1752513034296,178.82,164.93,164.92,0.03]
[1752513035202,147.9,164.93,164.92,0.03]
[1752513035703,178.8,164.93,164.92,0.03]
[1752513035887,179.27,164.93,164.92,0.03]
[1752513036074,6.06247218,164.95,164.92,0.03]
[1752513036075,6.06311131,164.94,164.92,0.03]
[1752513036275,30.9,164.93,164.92,0.03]
[1752513036475,31.37,164.93,164.92,0.03]
[1752513036696,6.53317831,164.93,164.92,0.03]
[1752513036905,37.43317831,164.93,164.92,0.03]
[1752513037904,36.96317831,164.93,164.92,0.03]
[1752513038078,30.9,164.93,164.92,0.7]
[1752513038785,30.9,164.93,164.92,0.03]
[1752513039099,30.9,164.93,164.92,0.7]
[1752513039276,147.9,164.97,164.92,8.08570574]
[1752513039478,30.9,164.96,164.94,7.38570574]
[1752513039784,30.9,164.96,164.94,8.05570574]
[1752513039986,153.96171148,164.97,164.94,7.38570574]
[1752513040195,30.9,164.96,164.94,7.38570574]
[1752513040892,30.94,164.95,164.93,7.38570574]
[1752513041097,30.94,164.95,164.93,8.05570574]
[1752513041697,30.94,164.95,164.94,7.38570574]
[1752513041998,153.96171148,164.97,164.93,8.05570574]
[1752513042191,30.96,164.96,164.93,8.05570574]
[1752513043798,37.0221141,164.96,164.93,8.05570574]
[1752513044802,30.94,164.95,164.94,8.05570574]
[1752513045178,153.96181537,164.97,164.94,8.05570574]
[1752513045374,30.94,164.96,164.94,8.05570574]
[1752513046373,30.94,164.96,164.94,7.38570574]
[1752513046774,30.94,164.96,164.94,8.05570574]
[1752513047600,30.92,164.95,164.94,8.05570574]
[1752513048102,30.92,164.95,164.94,7.38570574]
[1752513048296,30.92,164.95,164.92,0.7]
[1752513048497,30.92,164.94,164.93,8.05570574]
[1752513048897,6.06207574,164.96,164.93,8.05570574]
[1752513049189,31.39,164.95,164.92,0.03]
[1752513050209,6.06281071,164.94,164.92,0.03]
[1752513050382,30.94,164.93,164.92,0.03]
[1752513051598,30.94,164.93,164.92,0.7]
[1752513052784,30.94,164.93,164.92,0.03]
[1752513053509,37.00317831,164.93,164.92,0.03]
[1752513057180,37.47317831,164.93,164.92,0.03]
[1752513060415,6.53317831,164.93,164.92,0.03]
[1752513060610,37.43317831,164.93,164.92,0.03]
[1752513060817,36.96317831,164.93,164.92,0.03]
[1752513061187,37.43317831,164.93,164.92,0.03]
[1752513063183,6.53317831,164.93,164.92,0.03]
[1752513063405,37.43317831,164.93,164.92,0.03]
[1752513067604,36.96317831,164.93,164.92,0.03]
[1752513069409,6.06317831,164.93,164.92,0.03]
[1752513069717,36.96317831,164.93,164.92,0.03]
[1752513069893,147.9,164.94,164.92,0.69]
[1752513070092,147.9,164.94,164.93,7.38570574]
[1752513070313,178.8,164.94,164.93,7.38570574]
[1752513070498,178.8,164.94,164.93,8.04570574]
[1752513071309,185.33281071,164.94,164.92,0.03]
[1752513071513,0.47,164.93,164.92,0.03]
[1752513071726,6.53317831,164.93,164.92,0.03]
[1752513073004,6.06317831,164.93,164.92,0.03]
[1752513077525,37.02317831,164.93,164.92,0.03]
[1752513080826,6.12317831,164.93,164.92,0.03]
[1752513081029,37.02317831,164.93,164.92,0.03]
[1752513082627,6.12317831,164.93,164.92,0.03]
[1752513082929,37.02317831,164.93,164.92,0.03]
[1752513084132,6.12317831,164.93,164.92,0.03]
[1752513084324,37.02317831,164.93,164.92,0.03]
[1752513084930,6.12317831,164.93,164.92,0.03]
[1752513085122,37.02317831,164.93,164.92,0.03]
[1752513086336,37.49317831,164.93,164.92,0.03]
[1752513088018,37.02317831,164.93,164.92,0.03]
[1752513090512,0.06,164.93,164.92,8.07570574]
[1752513090722,30.96,164.93,164.92,8.07570574]
[1752513091527,0.06,164.93,164.92,8.07570574]
[1752513092419,0.06,164.93,164.92,14.1392517]
[1752513094027,0.06,164.96,164.92,32.24609545]
[1752513094219,0.06,164.96,164.95,7.38570574]
[1752513094614,0.06,164.96,164.95,8.04570574]
[1752513095036,30.96,164.96,164.95,0.66]